Cogmind - Beta 12 @@@ ROGUE MODE // 2023.10.27 @ 01:12:21 Player: OgamiTringle Result: Destroyed by as-38167 with Assembled Rifle Performance ------------- Evolutions (0) 0 Regions Visited (2) 400 Robots Destroyed (14) 70 Value Destroyed (394) 394 Prototype IDs (0) 0 Alien Tech Used (0) 0 Bonus (0) 0 TOTAL SCORE: 864 Bonus ------- None Cogmind --------- Core Integrity 0/250 Matter 267/300 Energy 77/100 System Corruption 14% Temperature Cool (0) Movement Walking (260) Ox2 Location -10/Mines Parts ------- > --- POWER (1) -------- (None) > --- PROPULSION (2) --- Aluminum Leg > --- UTILITY (2) ------ Large Storage Unit > --- WEAPON (2) ------- Light Assault Rifle > --- INVENTORY (15) --- Ion Engine Ion Engine Ion Engine Aluminum Leg Small Laser Light Assault Rifle Peak State ------------ > --- POWER ------------ Light Ion Engine > --- PROPULSION ------- Aluminum Leg Aluminum Leg > --- UTILITY ---------- Large Storage Unit Core Shielding > --- WEAPON ----------- Small Laser Light Assault Rifle > --- INVENTORY -------- Ion Engine Light Ion Engine Aluminum Leg EM Pulse Gun [Rating: 7] Favorites ----------- Power Light Ion Engine Engine Light Ion Engine Propulsion Aluminum Leg Leg Aluminum Leg Utility Large Storage Unit Storage Large Storage Unit Protection Core Shielding Weapon Light Assault Rifle Energy Gun Small Laser Ballistic Gun Light Assault Rifle Build | -11 -10 -10 ------- Run | Jun Mat Min Slots Evolved . | . . . Power . | . . . Propulsion . | . . . Utility . | . . . Weapon . | . . . Parts Attached 17 | 4 5 8 Power 4 | 1 1 2 Engine 4 | 1 1 2 Core . | . . . Reactor . | . . . Propulsion 5 | 2 . 3 Treads . | . . . Leg 5 | 2 . 3 Wheel . | . . . Hover . | . . . Flight . | . . . Utility 3 | 1 2 . Device . | . . . Storage 2 | 1 1 . Processor . | . . . Hackware . | . . . Protection 1 | . 1 . Artifact . | . . . Weapon 5 | . 2 3 Energy Gun 3 | . 1 2 Energy Cannon . | . . . Ballistic Gun 2 | . 1 1 Ballistic Cannon . | . . . Launcher . | . . . Special Weapon . | . . . Impact Weapon . | . . . Slashing Weapon . | . . . Piercing Weapon . | . . . Special Melee Weapon . | . . . Unidentified Prototypes . | . . . Parts Lost 8 | . . 8 Power 2 | . . 2 Propulsion 3 | . . 3 Utility 1 | . . 1 Weapon 2 | . . 2 Highest Loss Streak 6 | . . 6 To Critical Strikes 1 | . . 1 Average Slot Usage (%) 85 | . 85 85 Engine 10 | . 14 6 Leg 24 | . 28 21 Storage 14 | . 14 14 Protection 9 | . 4 14 Energy Gun 13 | . 12 14 Ballistic Gun 13 | . 12 14 Naked Turns . | . . . Heaviest Build 28 | 8 28 28 Greatest Support 20 | 20 20 20 Greatest Overweight (x) 9 | . 1 9 Average Overweight (x) 1 | . . 1 Largest Inventory Capacity 15 | 8 15 15 Average Capacity 14 | 6 14 15 Most Carried 10 | 5 7 10 Average Carried 6 | 2 4 8 Final Capacity 15 | 8 15 15 Final Carried 6 | 4 6 6 Class Distribution -------------------- 100% | Mutant Dominant Class ---------------- Mutant | -10/Materials Mutant | -10/Mines Resources | -11 -10 -10 ----------- Run | Jun Mat Min Matter Collected 387 | 205 96 86 Remotely . | . . . Salvage Created 478 | . 165 313 Parts 28 | . 13 15 Haulers Intercepted . | . . . Recyclers Shooed . | . . . Parts Field Recycled . | . . . Retrieved Matter . | . . . Parts Self-Destructed . | . . . Prevented . | . . . Kills | -11 -10 -10 ------- Run | Jun Mat Min Combat Hostiles Destroyed 12 | . 3 9 Guns 12 | . 3 9 Classes Destroyed 3 | . 2 1 Watcher 2 | . 2 . Swarmer 3 | . . 3 Grunt 9 | . 3 6 Best Kill Streak 4 | . 2 4 Combat Bots Only 4 | . 2 4 Max Kills in Single Turn 1 | . 1 1 Gunslinging . | . . . Exploded . | . . . Melee . | . . . Uniques/NPCs Destroyed . | . . . Combat | -11 -10 -10 -------- Run | Jun Mat Min Damage Taken 1228 | . 115 1113 Core 251 | . 45 206 Absorbed by Shields . | . . . Redirected to Shielding 46 | . 3 43 Core Remaining (%) 100 | 100 . . Volleys Fired 65 | . 11 54 Largest 2 | . 2 2 Hottest 60 | . 60 60 Shots Fired 108 | . 22 86 Gun 108 | . 22 86 Cannon . | . . . Launcher . | . . . Special . | . . . Kinetic 65 | . 11 54 Thermal 41 | . 11 30 Explosive . | . . . Electromagnetic 2 | . . 2 Robot Hit Streak 14 | . 13 14 Robot Miss Streak 3 | . 1 3 Penetration Max . | . . . Secondary Targets 2 | . . 2 Max Gunslinging Chain 1 | . . 1 Shots Hit Robots 57 | . 19 38 Core Hits 25 | . 11 14 Critical Kills . | . . . Critical Parts Destroyed . | . . . Critical Strikes . | . . . Melee Attacks . | . . . Impact . | . . . Slashing . | . . . Piercing . | . . . Sneak Attacks . | . . . Combat Hostiles . | . . . Follow-up Attacks . | . . . Damage Inflicted 577 | . 176 401 Guns 547 | . 176 371 Cannons . | . . . Explosions . | . . . Melee . | . . . Ramming 30 | . . 30 Kinetic 246 | . 80 166 Thermal 274 | . 96 178 Explosive . | . . . Electromagnetic 27 | . . 27 Impact . | . . . Slashing . | . . . Piercing . | . . . Highest Corruption 14 | . . 14 Average Corruption 12 | . . 12 Corruption Purged . | . . . Corruption Blocked . | . . . Effects 5 | . . 5 Matter Fused 2 | . . 2 Heat Flow Errors 1 | . . 1 Energy Discharges 1 | . . 1 Data Loss (major) 1 | . . 1 Overload Shots . | . . . Overflow Damage . | . . . Projectiles . | . . . Explosions . | . . . Melee . | . . . Knockbacks . | . . . Impact . | . . . Kinetic . | . . . Secondary . | . . . Self-Inflicted Damage 30 | . . 30 Shots . | . . . Rammed . | . . . Targets Rammed . | . . . Kicked . | . . . Crushed . | . . . Highest Temperature 264 | . 64 264 Average Temperature 58 | . 27 68 Received Heat Transfer 507 | . 63 444 Siege Activations . | . . . Robots Corrupted . | . . . Combat Hostiles . | . . . Parts Fried . | . . . Impact Corruptions . | . . . Robots Melted . | . . . Combat Hostiles . | . . . Parts Melted . | . . . Heat Transferred 625 | . 225 400 Parts Sabotaged . | . . . Parts Stolen . | . . . Parts Stripped . | . . . Power Chain Reactions . | . . . Missiles Intercepted . | . . . Alert | -11 -10 -10 ------- Run | Jun Mat Min Peak Influence 117 | . 117 117 Initial 2 | . . 2 Average 44 | . 24 66 Maximum Alert Level . | . . . Low Security (%) 100 | 100 100 100 Level 1 . | . . . Level 2 . | . . . Level 3 . | . . . Level 4 . | . . . Level 5 . | . . . High Security . | . . . Max Security . | . . . Squads Dispatched 1 | . 1 . Investigation . | . . . Extermination . | . . . Reinforcement 1 | . 1 . Assault . | . . . Garrison . | . . . Intercept . | . . . Searches Triggered . | . . . Construction Impeded . | . . . Haulers Reinforced . | . . . Active Scanning Responses . | . . . Cargo Convoy Interrupts . | . . . Stealth | -11 -10 -10 --------- Run | Jun Mat Min Distress Signals . | . . . Communications Jammed . | . . . Distress Signals . | . . . Times Spotted 17 | . 6 11 Peak Tracking Total 6 | . 2 6 Tactical Retreats . | . . . Traps | -11 -10 -10 ------- Run | Jun Mat Min Traps Triggered . | . . . Indirectly . | . . . Trap Hack Attempts . | . . . Triggered . | . . . Disarmed . | . . . Reprogrammed . | . . . Reused . | . . . Traps Extracted . | . . . Installed . | . . . Triggered . | . . . Machines | -11 -10 -10 ---------- Run | Jun Mat Min Machines Disabled . | . . . Max in Single Turn . | . . . Machines Repaired . | . . . Machines Sabotaged . | . . . Overloaded Fab Kills . | . . . Hacking | -11 -10 -10 --------- Run | Jun Mat Min Machines Accessed 1 | . 1 . Terminals 1 | . 1 . Fabricators . | . . . Repair Stations . | . . . Recycling Units . | . . . Scanalyzers . | . . . Garrison Access . | . . . Total Hacks 1 | . 1 . Successful 1 | . 1 . Failed . | . . . Catastrophic . | . . . Database Lockouts . | . . . Manual . | . . . Terminals 1 | . 1 . Fabricators . | . . . Repair Stations . | . . . Recycling Units . | . . . Scanalyzers . | . . . Garrison Access . | . . . Terminal Hacks 1 | . 1 . Record 1 | . 1 . Fabricator Hacks . | . . . Repair Station Hacks . | . . . Recycling Unit Hacks . | . . . Scanalyzer . | . . . Garrison Access Hacks . | . . . Unauthorized Hacks . | . . . Terminals . | . . . Fabricators . | . . . Repair Stations . | . . . Recycling Units . | . . . Scanalyzers . | . . . Garrison Access . | . . . Data Cores Recovered . | . . . Used . | . . . Hacking Detections . | . . . Full Trace Events . | . . . Feedback Events . | . . . Feedback Blocked . | . . . Robot Schematics Acquired . | . . . Robots Built . | . . . Authchips . | . . . Time . | . . . Total Robot Build Rating . | . . . Part Schematics Acquired . | . . . Parts Built . | . . . Authchips . | . . . Time . | . . . Total Part Build Rating . | . . . Parts Repaired . | . . . Time . | . . . Parts Recycled . | . . . Recycled Matter . | . . . Retrieved Matter . | . . . Retrieved Components . | . . . Parts Scanalyzed . | . . . Part Schematics Acquired . | . . . Parts Damaged . | . . . Bothacking | -11 -10 -10 ------------ Run | Jun Mat Min Used RIF Installer . | . . . Robots Hacked . | . . . Non-combat . | . . . Combat . | . . . Robot Hacks Applied . | . . . Relay Couplers Released . | . . . Fabnet Peak Effective % . | . . . Robots Rewired . | . . . Allies Hacked . | . . . Hacks Repelled . | . . . Allies | -11 -10 -10 -------- Run | Jun Mat Min Total Allies . | . . . Largest Group . | . . . Highest-Rated Group . | . . . Highest-Rated Ally . | . . . Total Orders . | . . . Ally Attacks . | . . . Total Damage . | . . . Kills . | . . . Allies Corrupted . | . . . Allies Melted . | . . . Intel | -11 -10 -10 ------- Run | Jun Mat Min Robot Analysis Total . | . . . Derelict Logs Recovered 1 | . . 1 Drone Launches . | . . . Drone Recoveries . | . . . Exploration | -11 -10 -10 ------------- Run | Jun Mat Min Turns Passed 1077 | 44 488 545 Spaces Moved 324 | 39 146 139 Core 21 | 20 . 1 Treads . | . . . Legs 303 | 19 146 138 Wheels . | . . . Hover . | . . . Flight . | . . . Fastest Speed 50 | 50 120 190 Average Speed 188 | 84 187 217 Slowest Speed 500 | 120 190 500 Overloaded Moves . | . . . Propulsion Burnouts . | . . . Robots Hopped . | . . . Cave-ins Triggered . | . . . Exploration Rate (%) 22 | 4 32 32 Regions Visited 2 Branch Regions 1 Pre-discovered Areas 1 | . . 1 Known Exits Taken . | . . . Unknown Exits Taken 2 | 1 1 . Scrap Searched . | . . . Spaces Dug . | . . . Terrain Destroyed . | . . . Melee . | . . . Projectile . | . . . AOE . | . . . Terrain Rammed 13 | . . 13 Walls Destroyed . | . . . Machines Disabled . | . . . Actions | -11 -10 -10 --------- Run | Jun Mat Min Total 656 | 50 341 265 Wait 218 | . 171 47 Move 322 | 38 145 139 Hop . | . . . Pick Up 19 | 8 7 4 Fast Attach . | . . . Attach 12 | 4 4 4 Detach . | . . . Swap 5 | . 1 4 Drop 2 | . 2 . Fire 65 | . 11 54 Melee . | . . . Ram 13 | . . 13 Kick . | . . . Crush . | . . . Escape Stasis . | . . . Rewire . | . . . Trap . | . . . Miscellaneous . | . . . Route ------- -11/Junkyard -10/Materials -10/Mines (discovered 1 exit: [*Mat]) History --------- Turn | Location | Event 3 | -11/Junkyard | Discovered new exit (range 15) 45 | -11/Junkyard | Entered Materials 308 | -10/Materials | Build established: Mutant 516 | -10/Materials | Discovered new exit (range 9) 533 | -10/Materials | Entered Mines 685 | -10/Mines | Learned location of Storage (-7) 685 | -10/Mines | Discovered new exit (range 6) 872 | -10/Mines | Excavation squad dispatched 872 | -10/Mines | A large section of the Mines collapsed 996 | -10/Mines | System corruption reached 10% 1036 | -10/Mines | Core integrity fell below 50% 1056 | -10/Mines | Core integrity fell below 20% 1078 | -10/Mines | Destroyed by as-38167 with Assembled Rifle Last Messages --------------- 01044_ Critical hit (Destroy). 01044_ Broken Aluminum Leg destroyed. 01045_ T-07 Excavator is excavating. 01049_ Lgt. Ion Engine destroyed. 01050_ T-07 Excavator is excavating. 01055_ G-34 Mercenary destroyed. 01055_ Switching to secondary target: G-34 Mercenary. 01056_ System corrupted: Substantial component data lost. 01058_ T-07 Excavator is excavating. 01060_ Sml. Laser destroyed. 01062_ T-07 Excavator is excavating. 01062_ G-34 Mercenary destroyed. 01069_ T-07 Excavator is excavating. 01070_ Acquired 45 matter. 01072_ System corrupted: Energy discharge (-33). 01073_ Acquired 10 matter. 01074_ EM Pulse Gun destroyed. 01076_ Acquired 19 matter. 01076_ T-07 Excavator destroyed. 01078_ Core Shielding destroyed. Map ----- +----------------------------------------------------+ | ???????????????????????????????????? | | ???????????????????????????????????? | | ???????????????????????????????????? | | ???????????????????????????????????? | | ???????????????????????????????????? | | ???????????????????????????????????? | | ???????????????????????????????????? | | ???????????????????????????????????? | | ???????????????????????????????????? | | ???????????????????????????????????? | | ????? ???????????????????????????? | | ????? ??????????###??????????????? | | ???? ??????????# ??????????????? | | ????# ??????????# #?????????#????? | | ???## #??????????# #???????? #????? | | ??## #??????????# #???????? #????? | | ?## ##?????????# ##??????? #????? | | ## ##???????## ##??######????? | | # ##??????# #### #????? | | #?????## #????? | | #?????#!%= ;; ; #????? | | #?????# [ * ##???? | | #?????# ## % [ a #???? | | % #??????# ### [%= [!;##??? | | #??????# #?## =% ##??? | | % ##?????# #??# @|##"###??? | | # % ##???## #??#####;;####??? | | ## ##### ##### # ###???? | | ?### ## #### ##????? | | ???# ### #?## ##?????? | | #### #?## ##??####??????? | | #??### #####?????????? | | #######????## #?????????? | | ????????????# #?????????? | | ????????????## #?????????? | | ?????????????## ##?????????? | | ??????????????### ##??????????? | | ????????????????########???????????? | | ???????????????????????????????????? | | ???????????????????????????????????? | | ???????????????????????????????????? | | | | | | | | | | | | | | | | | | | +----------------------------------------------------+ Best States ------------- Heat Dissipation 25 Energy Generation 10 Energy Capacity 250 Matter Stores 300 Matter Capacity 300 Sight Range 16 Terrain Scan Density 10 Core Shielding 20 Evasion (%) 55 Item Schematics ----------------- None Robot Schematics ------------------ None Fabricated ------------ Nothing Alien Tech Used ----------------- None Achievements -------------- System Compromised Challenges ------------ None Game ------ Seed AnalysisPhaseCapacitor Manual? 0 Play Time 00:14:21 Cumulative 1.5 hours Start 2023.10.27 @ 00:57:07 End 2023.10.27 @ 01:12:21 Sessions 1 Manual Loads 0 Difficulty Rogue Special Mode None Game No. 5 Rogue 5 Adventurer 0 Explorer 0 Win Type - Total 0 Types 0/0/0/0/0/0/0/0/0 Lore% 1 Gallery% 5 Achievement% 5 Wizard Run 0 Options --------- ASCII 0 Keyboard 0 Movement Mouse Keybinds 0 Fullscreen 1 Font 24/Smallcaps Map View 76x50 Tactical HUD 1 Map Filters NONE Filters NONE Steam 1 RUN: 85bc08be-d07e-4458-a516-d29ec1457ea6